[Event "Velammal AICF Women GM 2024"]
[Site "Chennai"]
[Date "2024.03.25"]
[Round "11.2"]
[White "Franco Valencia, Angela"]
[Black "Maisuradze, Nino"]
[Result "1/2-1/2"]
[ECO "B32"]
[WhiteElo "2095"]
[BlackElo "2254"]
[Annotator "RC"]
[PlyCount "74"]
[EventDate "2024.03.18"]
[EventType "tourn"]
[EventCountry "IND"]
[SourceTitle "playchess.com"]
[Source "ChessBase"]
[SourceQuality "1"]
[TimeControl "5400+30"]

1. e4 {[%emt 0:03:39]} c5 {[%emt 0:00:04]} 2. Nf3 {[%emt 0:00:09]} Nc6 {[%emt 0:00:09]} 3. d4 {[%emt 0:00:12]} cxd4 {[%emt 0:00:07]} 4. Nxd4 {[%emt 0:00:06]} e5 {[%emt 0:00:05]} 5. Nb5 {[%emt 0:00:21]} d6 {[%emt 0:00:03]} 6. N1c3 {[%emt 0:00:19]} a6 {[%emt 0:00:05]} 7. Na3 {[%emt 0:00:05]} b5 {[%emt 0:00:01]} 8. Nd5 {[%emt 0:00:09]} Nge7 {[%emt 0:00:14]} 9. Bg5 {[%emt 0:00:25]} h6 {[%emt 0:00:13]} 10. Bxb5 {[%emt 0:01:29]} hxg5 {[%emt 0:00:15]} 11. Nxe7 {[%emt 0:00:27]} axb5 {[%emt 0:00:02]} 12. Nxc6 {[%emt 0:00:08]} Qd7 {[%emt 0:00:03]} 13. Nb4 {[%emt 0:00:16]} Ra4 {[%emt 0:00:06]} 14. c3 {[%emt 0:00:18]} d5 {[%emt 0:00:12]} 15. Qxd5 {[%emt 0:04:12]} Bxb4 {[%emt 0:01:58]} 16. cxb4 {[%emt 0:10:41]} Qxd5 {[%emt 0:00:23]} 17. exd5 {[%emt 0:00:05]} Rxb4 {[%emt 0:00:03]} 18. O-O {[%emt 0:06:07]} Bd7 {[%emt 0:13:48]} 19. Rfe1 {[%emt 0:09:42]} f6 {[%emt 0:01:01]} 20. f3 {[%emt 0:07:41]} Ke7 {[%emt 0:00:57]} 21. b3 {[%emt 0:00:57]} Rbh4 {[%emt 0:21:52]} 22. h3 {[%emt 0:01:07]} Rc8 {[%emt 0:01:32]} 23. Rec1 {[%emt 0:03:31]} Rxc1+ {[%emt 0:01:16]} 24. Rxc1 {[%emt 0:00:04]} Rd4 {[%emt 0:04:38]} 25. Nc2 {[%emt 0:02:10]} Rxd5 {[%emt 0:00:34]} 26. Nb4 {[%emt 0:00:09]} Rd2 {[%emt 0:02:17]} 27. Rc7 {[%emt 0:04:17]} Kd6 {[%emt 0:01:28]} 28. Ra7 {[%emt 0:00:53]} Kc5 {[%emt 0:04:47]} 29. a3 {[%emt 0:00:49]} Kd6 {[%emt 0:14:15]} 30. Ra6+ {[%emt 0:02:34]} Kc7 {[%emt 0:05:07]} 31. Ra8 {[%emt 0:01:54]} Rb2 {[%emt 0:09:38]} 32. Ra7+ {[%emt 0:00:19]} Kd6 {[%emt 0:02:06]} 33. Nd3 {[%emt 0:00:49]} Rd2 {[%emt 0:00:48]} 34. Ra6+ {[%emt 0:01:32]} Kd5 {[%emt 0:01:07]} 35. Ra7 {[%emt 0:00:40]} Kd6 {[%emt 0:04:47]} 36. Ra6+ {[%emt 0:00:34]} Kd5 {[%emt 0:00:12]} 37. Ra7 {[%emt 0:00:41]} Kd6 {[%emt 0:01:58]} 1/2-1/2

[Event "Velammal AICF Women GM 2024"]
[Site "Chennai"]
[Date "2024.03.25"]
[Round "11.4"]
[White "Enkhtuul, Altan-Ulzii"]
[Black "Chitlange Sakshi"]
[Result "1-0"]
[ECO "E01"]
[WhiteElo "2195"]
[BlackElo "2175"]
[Annotator "RC"]
[PlyCount "104"]
[EventDate "2024.03.18"]
[EventType "tourn"]
[EventCountry "IND"]
[SourceTitle "playchess.com"]
[Source "ChessBase"]
[SourceQuality "1"]
[TimeControl "5400+30"]

1. d4 {[%emt 0:04:11]} Nf6 {[%emt 0:00:11]} 2. Nf3 {[%emt 0:00:11]} d5 {[%emt 0:00:06]} 3. g3 {[%emt 0:02:09]} c5 {[%emt 0:00:07]} 4. c4 {[%emt 0:01:35]} dxc4 {[%emt 0:00:53]} 5. Qa4+ {[%emt 0:07:39]} Nc6 {[%emt 0:07:32]} 6. dxc5 {[%emt 0:06:57]} e6 {[%emt 0:06:20]} 7. Qxc4 {[%emt 0:01:44]} Qa5+ {[%emt 0:00:24]} 8. Nbd2 {[%emt 0:01:01]} Qxc5 {[%emt 0:02:54]} 9. Bg2 {[%emt 0:02:14]} Bd7 {[%emt 0:02:05]} 10. O-O {[%emt 0:01:06]} Rc8 {[%emt 0:01:35]} 11. Qxc5 {[%emt 0:10:20]} Bxc5 {[%emt 0:00:02]} 12. Nb3 {[%emt 0:00:21]} Be7 {[%emt 0:04:55]} 13. Be3 {[%emt 0:11:08]} Nd5 {[%emt 0:07:33]} 14. Bc5 {[%emt 0:00:59]} b6 {[%emt 0:00:55]} 15. Bxe7 {[%emt 0:00:10]} Kxe7 {[%emt 0:00:31]} 16. Rac1 {[%emt 0:02:40]} Rhd8 {[%emt 0:04:45]} 17. a3 {[%emt 0:04:59]} h6 {[%emt 0:14:42]} 18. e4 {[%emt 0:08:16]} Nf6 {[%emt 0:01:39]} 19. e5 {[%emt 0:00:51]} Nd5 {[%emt 0:01:04]} 20. Nbd2 {[%emt 0:00:37]} Nb8 {[%emt 0:12:49]} 21. Nc4 {[%emt 0:04:55]} Ba4 {[%emt 0:05:29]} 22. Nd6 {[%emt 0:02:33]} Rxc1 {[%emt 0:03:13]} 23. Rxc1 {[%emt 0:00:02]} Bd7 {[%emt 0:00:41]} 24. Nd4 {[%emt 0:01:19]} f6 {[%emt 0:01:32]} 25. f4 {[%emt 0:02:00]} Na6 {[%emt 0:03:18]} 26. b4 {[%emt 0:04:07]} Nac7 {[%emt 0:01:08]} 27. b5 {[%emt 0:04:36]} Rf8 {[%emt 0:00:59]} 28. a4 {[%emt 0:00:17]} g5 {[%emt 0:01:59]} 29. Ne4 {[%emt 0:03:09]} gxf4 {[%emt 0:03:09]} 30. Nxf6 {[%emt 0:04:03]} Kd8 {[%emt 0:02:35]} 31. Nxd5 {[%emt 0:02:43]} exd5 {[%emt 0:01:20]} 32. Rf1 {[%emt 0:01:38]} f3 {[%emt 0:01:24]} 33. Bxf3 {[%emt 0:00:49]} Re8 {[%emt 0:01:21]} 34. Re1 {[%emt 0:00:43]} a6 {[%emt 0:01:22]} 35. Bh5 {[%emt 0:00:38]} Re7 {[%emt 0:00:27]} 36. bxa6 {[%emt 0:01:22]} Nxa6 {[%emt 0:00:02]} 37. e6 {[%emt 0:00:35]} Nc5 {[%emt 0:00:35]} 38. Bf7 {[%emt 0:00:27]} Bxa4 {[%emt 0:04:41]} 39. Nf5 {[%emt 0:00:11]} b5 {[%emt 0:00:38]} 40. Re5 {[%emt 0:00:38]} Bb3 {[%emt 0:00:22]} 41. Nd4 {[%emt 0:00:09]} Kc7 {[%emt 0:00:48]} 42. Nxb5+ {[%emt 0:00:51]} Kb6 {[%emt 0:02:01]} 43. Nd4 {[%emt 0:00:11]} Bc4 {[%emt 0:01:10]} 44. Nf5 {[%emt 0:00:06]} Nd3 {[%emt 0:00:07]} 45. Re3 {[%emt 0:01:06]} Ra7 {[%emt 0:00:15]} 46. e7 {[%emt 0:00:24]} Ra1+ {[%emt 0:00:13]} 47. Kg2 {[%emt 0:00:06]} Ra2+ {[%emt 0:00:10]} 48. Kf3 {[%emt 0:01:03]} h5 {[%emt 0:01:01]} 49. Re6+ {[%emt 0:02:11]} Kc5 {[%emt 0:00:18]} 50. Rc6+ {[%emt 0:01:09]} Kb4 {[%emt 0:00:36]} 51. Rxc4+ {[%emt 0:00:06]} Kxc4 {[%emt 0:00:22]} 52. e8=Q {[%emt 0:00:22]} Rf2+ {[%emt 0:00:36]} 1-0

[Event "Velammal AICF Women GM 2024"]
[Site "Chennai"]
[Date "2024.03.25"]
[Round "11.5"]
[White "Uuriintuya, Uurtsaikh"]
[Black "Mahalakshmi, M."]
[Result "1-0"]
[ECO "B10"]
[WhiteElo "2288"]
[BlackElo "2242"]
[Annotator "RC"]
[PlyCount "65"]
[EventDate "2024.03.18"]
[EventType "tourn"]
[EventCountry "IND"]
[SourceTitle "playchess.com"]
[Source "ChessBase"]
[SourceQuality "1"]
[TimeControl "5400+30"]

1. e4 {[%emt 0:04:53]} c6 {[%emt 0:00:02]} 2. c4 {[%emt 0:00:04]} d5 {[%emt 0:00:04]} 3. cxd5 {[%emt 0:00:04]} cxd5 {[%emt 0:00:04]} 4. exd5 {[%emt 0:00:05]} Nf6 {[%emt 0:00:40]} 5. Nc3 {[%emt 0:01:44]} Nxd5 {[%emt 0:00:21]} 6. Nf3 {[%emt 0:00:15]} Nc6 {[%emt 0:08:17]} 7. Bb5 {[%emt 0:00:17]} Nc7 {[%emt 0:10:57]} 8. Bxc6+ {[%emt 0:12:15]} bxc6 {[%emt 0:00:01]} 9. Ne5 {[%emt 0:00:09]} Qd4 {[%emt 0:08:04]} 10. Qe2 {[%emt 0:01:14]} Ba6 {[%emt 0:07:50]} 11. d3 {[%emt 0:00:08]} e6 {[%emt 0:01:11]} 12. O-O {[%emt 0:02:57]} Bc5 {[%emt 0:15:18]} 13. Rd1 {[%emt 0:08:52]} Bb7 {[%emt 0:05:05]} 14. Nc4 {[%emt 0:07:48]} Qd7 {[%emt 0:04:23]} 15. Qe5 {[%emt 0:06:17]} Bf8 {[%emt 0:05:27]} 16. Ne4 {[%emt 0:04:59]} Nd5 {[%emt 0:05:50]} 17. Ncd6+ {[%emt 0:06:29]} Bxd6 {[%emt 0:00:13]} 18. Nxd6+ {[%emt 0:00:01]} Kf8 {[%emt 0:00:09]} 19. b3 {[%emt 0:01:19]} f6 {[%emt 0:04:28]} 20. Qg3 {[%emt 0:01:09]} a5 {[%emt 0:06:27]} 21. Ba3 {[%emt 0:08:47]} Ba6 {[%emt 0:00:36]} 22. Bc5 {[%emt 0:01:48]} g6 {[%emt 0:01:38]} 23. Re1 {[%emt 0:05:40]} Kg7 {[%emt 0:00:20]} 24. Re4 {[%emt 0:06:35]} Nc3 {[%emt 0:00:48]} 25. Re3 {[%emt 0:00:30]} Nb5 {[%emt 0:05:14]} 26. Ne4 {[%emt 0:02:17]} Qc7 {[%emt 0:03:22]} 27. Qh4 {[%emt 0:03:58]} Qe5 {[%emt 0:01:52]} 28. Rae1 {[%emt 0:00:05]} Rhd8 {[%emt 0:02:45]} 29. Be7 {[%emt 0:02:11]} g5 {[%emt 0:00:11]} 30. Nxg5 {[%emt 0:01:28]} fxg5 {[%emt 0:00:50]} 31. Bxg5 {[%emt 0:00:08]} Qd4 {[%emt 0:01:03]} 32. Qh6+ {[%emt 0:00:11]} Kg8 {[%emt 0:00:37]} 33. Bf6 {[%emt 0:00:19]} 1-0

[Event "Velammal AICF Women GM 2024"]
[Site "Chennai"]
[Date "2024.03.25"]
[Round "11.6"]
[White "Rindhiya V"]
[Black "Velpula Sarayu"]
[Result "0-1"]
[ECO "B90"]
[WhiteElo "1953"]
[BlackElo "2389"]
[Annotator "RC"]
[PlyCount "64"]
[EventDate "2024.03.18"]
[EventType "tourn"]
[EventCountry "IND"]
[SourceTitle "playchess.com"]
[Source "ChessBase"]
[SourceQuality "1"]
[TimeControl "5400+30"]

1. e4 {[%emt 0:00:02]} c5 {[%emt 0:00:27]} 2. Nf3 {[%emt 0:00:08]} d6 {[%emt 0:00:30]} 3. d4 {[%emt 0:00:04]} cxd4 {[%emt 0:00:26]} 4. Nxd4 {[%emt 0:00:05]} Nf6 {[%emt 0:00:29]} 5. Nc3 {[%emt 0:00:05]} a6 {[%emt 0:00:34]} 6. Be3 {[%emt 0:00:10]} e5 {[%emt 0:00:30]} 7. Nb3 {[%emt 0:00:04]} Be7 {[%emt 0:00:32]} 8. f3 {[%emt 0:00:10]} Be6 {[%emt 0:00:28]} 9. Qd2 {[%emt 0:00:17]} h5 {[%emt 0:00:32]} 10. Nd5 {[%emt 0:01:29]} Nxd5 {[%emt 0:00:27]} 11. exd5 {[%emt 0:00:07]} Bf5 {[%emt 0:00:29]} 12. Bd3 {[%emt 0:01:16]} Bxd3 {[%emt 0:00:32]} 13. Qxd3 {[%emt 0:00:05]} Bg5 {[%emt 0:00:46]} 14. O-O-O {[%emt 0:16:16]} Nd7 {[%emt 0:00:23]} 15. Qd2 {[%emt 0:04:18]} Bxe3 {[%emt 0:01:54]} 16. Qxe3 {[%emt 0:00:06]} Rc8 {[%emt 0:07:14]} 17. Kb1 {[%emt 0:05:14]} O-O {[%emt 0:06:07]} 18. f4 {[%emt 0:14:28]} Qc7 {[%emt 0:05:17]} 19. c3 {[%emt 0:02:58]} a5 {[%emt 0:05:15]} 20. fxe5 {[%emt 0:09:01]} dxe5 {[%emt 0:01:34]} 21. d6 {[%emt 0:01:31]} Qd8 {[%emt 0:03:06]} 22. a4 {[%emt 0:21:37]} Rc4 {[%emt 0:12:57]} 23. Qe2 {[%emt 0:00:18]} Rxa4 {[%emt 0:06:00]} 24. Qb5 {[%emt 0:04:30]} Rg4 {[%emt 0:03:44]} 25. Nxa5 {[%emt 0:02:21]} Rxg2 {[%emt 0:11:57]} 26. Qxb7 {[%emt 0:03:12]} Qg5 {[%emt 0:05:42]} 27. Qxd7 {[%emt 0:11:35]} Qg6+ {[%emt 0:06:35]} 28. Ka1 {[%emt 0:01:55]} Qc2 {[%emt 0:00:57]} 29. Qb5 {[%emt 0:01:02]} Ra8 {[%emt 0:00:54]} 30. Rb1 {[%emt 0:00:13]} Rg4 {[%emt 0:00:43]} 31. b4 {[%emt 0:00:50]} Rg2 {[%emt 0:00:44]} 32. Qd5 {[%emt 0:00:31]} Qa4+ {[%emt 0:00:06]} 0-1